bitfinex/quotes_SOLUSD_20250301
["timestamp","ask_amount","ask_price","bid_price","bid_amount"]
[1740819082181,18.64964886,144.0,143.97,6.1]
[1740819082559,86.2551,144.01,143.97,6.1]
[1740819084592,80.7,144.01,143.97,6.1]
[1740819084889,86.2552,144.01,143.97,6.1]
[1740819085190,86.2552,144.01,143.97,6.163]
[1740819085773,18.64964886,144.0,143.97,6.163]
[1740819085965,99.34964886,144.0,143.97,6.163]
[1740819086165,5.5559,143.99,143.97,6.163]
[1740819086366,18.64964886,143.98,143.97,6.163]
[1740819087691,18.64964886,143.98,143.97,0.063]
[1740819088269,24.20594886,143.98,143.97,0.063]
[1740819090678,31.86624886,143.98,143.97,0.063]
[1740819091492,13.2166,143.98,143.97,0.063]
[1740819091796,7.6603,143.98,143.97,0.063]
[1740819092591,13.2166,143.98,143.97,0.063]
[1740819092779,31.86624886,143.98,143.97,0.063]
[1740819094269,7.177,143.98,143.97,0.063]
[1740819094470,86.256,143.99,143.97,0.063]
[1740819095686,11.8307,144.01,143.97,0.063]
[1740819096394,5.5552,144.01,143.97,0.063]
[1740819096586,1.5637,144.02,143.97,0.063]
[1740819096789,99.34964886,144.03,143.97,0.063]
[1740819097601,104.90414886,144.03,143.97,0.063]
[1740819098694,18.64964886,144.02,143.97,0.063]
[1740819099996,5.5551,144.01,143.97,0.063]
[1740819102604,18.64964886,143.99,143.97,0.063]
[1740819103495,104.90594886,143.98,143.97,0.063]
[1740819104284,20.0,143.96,143.95,6.1]
[1740819104708,18.64964886,143.95,143.91,6.1]
[1740819105302,18.64964886,143.97,143.91,6.1]
[1740819105595,24.20634886,143.97,143.91,6.1]
[1740819107022,29.81254268,143.97,143.91,6.1]
[1740819107227,24.20634886,143.97,143.91,6.1]
[1740819107513,38.09804886,143.97,143.91,6.1]
[1740819109007,80.7,143.95,143.91,6.163]
[1740819109707,5.5578,143.94,143.91,6.163]
[1740819110416,5.5578,143.94,143.91,0.063]
[1740819110612,5.5578,143.94,143.91,6.163]
[1740819111623,99.34964886,143.93,143.91,6.163]
[1740819114914,5.5586,143.92,143.91,6.163]
[1740819115725,5.5586,143.92,143.91,0.063]
[1740819116723,99.34964886,143.93,143.91,0.063]
[1740819116906,104.90794886,143.93,143.91,0.063]
[1740819120637,86.2583,143.93,143.91,0.063]
[1740819120935,20.0,143.94,143.91,0.063]
[1740819121232,86.2562,143.99,143.91,82.5849]
[1740819121404,80.7,143.99,143.91,84.5849]
[1740819121919,80.7,143.99,143.91,82.5849]
[1740819122101,18.64964886,143.98,143.91,82.5849]
[1740819122819,5.5567,143.97,143.91,88.1436]
[1740819123804,5.5567,143.97,143.91,82.5849]
[1740819124203,18.64964886,143.98,143.91,82.5849]
[1740819124204,24.20604886,143.98,143.91,88.1438]
[1740819125800,18.64964886,143.96,143.92,6.1]
[1740819126004,18.64964886,143.94,143.92,6.1]
[1740819126814,20.0,143.93,143.92,6.1]
[1740819127605,25.5582,143.93,143.92,6.1]
[1740819130507,24.20784886,143.93,143.92,6.1]
[1740819132913,44.20784886,143.93,143.92,6.1]
[1740819134329,20.0,143.93,143.92,6.1]
[1740819135227,80.7,143.95,143.92,6.1]
[1740819136514,86.2576,143.95,143.92,6.1]
[1740819138307,80.7,143.95,143.92,6.1]
[1740819140010,86.2576,143.95,143.92,6.1]
[1740819142130,24.20784886,143.94,143.92,6.1]
[1740819143953,104.90784886,143.94,143.92,6.1]
[1740819146638,104.90784886,143.93,143.92,6.1]
[1740819147027,18.64964886,143.92,143.91,0.063]
[1740819147433,24.20784886,143.93,143.91,0.063]
[1740819147732,18.64964886,143.92,143.91,0.063]
[1740819147928,24.20784886,143.93,143.91,0.063]
[1740819148328,18.64964886,143.92,143.91,0.063]
[1740819149034,24.20784886,143.93,143.91,0.063]
[1740819155237,18.64964886,143.89,143.83,1.5211]
[1740819155440,18.64964886,143.89,143.85,6.1]
[1740819155745,20.0,143.86,143.83,7.6211]
[1740819156928,20.0,143.86,143.83,13.2461]
[1740819157541,20.0,143.86,143.83,7.6841]
[1740819158251,20.0,143.86,143.83,13.2461]
[1740819158453,24.20864886,143.91,143.83,13.2461]
[1740819158751,18.64964886,143.89,143.83,7.1461]
[1740819158938,18.64964886,143.89,143.84,6.1]
[1740819159535,18.64964886,143.87,143.84,6.1]
[1740819162443,18.64964886,143.87,143.84,11.6617]
[1740819162652,80.7,143.88,143.84,11.6617]
[1740819164134,80.7,143.92,143.84,337.566]
[1740819164334,86.2587,143.92,143.84,418.566]
[1740819166338,18.64964886,143.91,143.84,404.6617]
[1740819168156,5.5594,143.9,143.84,404.6617]
[1740819168560,86.2594,143.9,143.84,323.6617]
[1740819168754,86.2594,143.9,143.84,323.7247]
[1740819169665,86.2594,143.9,143.84,11.7247]
[1740819170363,86.2594,143.9,143.84,6.163]
[1740819170738,18.64964886,143.89,143.84,6.163]
[1740819172261,24.20974886,143.89,143.84,6.163]
[1740819174449,80.7,143.88,143.84,6.163]
[1740819175270,86.2604,143.88,143.84,6.163]
[1740819177558,80.7,143.88,143.84,6.163]
[1740819181773,80.7,143.88,143.84,11.7246]
[1740819187368,74.7,143.88,143.84,11.7246]
[1740819187862,74.7,143.88,143.84,25.6289]
[1740819190283,74.7,143.88,143.84,337.6289]
[1740819190886,74.7,143.88,143.84,25.6289]
[1740819192278,0.03,143.91,143.84,106.6289]
[1740819193881,0.03,143.91,143.86,1.6437]
[1740819194066,0.03,143.91,143.87,6.5866]
[1740819196092,0.03,143.91,143.87,12.147]
[1740819197292,0.03,143.91,143.87,324.147]
[1740819202967,0.03,143.91,143.87,12.147]
[1740819203175,0.03,143.91,143.88,1.6338]
[1740819203392,0.03,143.91,143.89,6.1]
[1740819205097,0.03,143.91,143.89,11.6594]
[1740819205278,0.03,143.91,143.9,8.0314]
[1740819205478,0.03,143.91,143.9,89.0314]
[1740819206081,0.03,143.91,143.9,401.0314]
[1740819206494,0.03,143.91,143.9,406.5908]
[1740819209098,0.03,143.91,143.9,13.5908]
[1740819211908,0.03,143.91,143.9,94.5908]
[1740819212205,0.03,143.91,143.9,406.5908]
[1740819213612,0.03,143.91,143.9,394.6338]
[1740819214114,0.03,143.91,143.9,400.1932]
[1740819215985,0.03,143.91,143.9,319.1932]
[1740819216704,0.03,143.91,143.9,7.1932]
[1740819218291,0.03,143.91,143.9,9.1932]
[1740819218903,0.03,143.91,143.9,7.1932]
[1740819219606,0.03,143.91,143.9,319.1932]
[1740819220508,0.03,143.91,143.9,321.1932]
[1740819221907,0.03,143.91,143.9,402.1932]
[1740819222107,0.03,143.97,143.9,404.1932]
[1740819222313,0.03,143.97,143.9,106.0917]
[1740819223886,0.03,143.97,143.9,104.0917]
[1740819224413,0.03,143.97,143.9,102.0917]
[1740819225202,0.03,143.97,143.91,312.0]
[1740819225410,0.03,143.97,143.92,5.5586]
[1740819225603,0.03,143.97,143.91,317.5589]
[1740819228015,18.67964886,143.97,143.91,317.5589]
[1740819228805,18.67964886,143.97,143.91,5.5589]
[1740819229321,24.23634886,143.97,143.91,5.5589]
[1740819230522,24.23634886,143.97,143.91,5.6219]
[1740819231006,24.23634886,143.97,143.91,0.063]
[1740819231508,100.52874886,143.97,143.91,0.063]
[1740819231706,100.52874886,143.97,143.92,6.08]
[1740819232208,114.42044886,143.97,143.92,6.08]
[1740819233223,114.42044886,143.97,143.91,6.143]
[1740819242926,114.42044886,143.97,143.91,0.063]
[1740819244526,100.52874886,143.97,143.91,0.063]
[1740819245421,0.03,143.97,143.91,81.063]
[1740819246817,0.03,143.97,143.92,5.5586]
[1740819247825,0.03,143.97,143.92,317.5586]
[1740819248732,0.03,143.97,143.92,398.5586]
[1740819251427,0.03,143.97,143.92,536.5586]
[1740819254736,0.03,143.97,143.92,557.4886]
[1740819254910,0.03,143.97,143.92,536.5586]
[1740819265445,0.03,143.97,143.92,550.4552]
[1740819266438,0.03,143.97,143.92,552.4552]
[1740819266636,0.03,143.97,143.92,240.4552]
[1740819269754,0.03,143.97,143.95,5.5574]
[1740819269953,0.03,143.97,143.96,6.08]
[1740819273055,0.03,143.97,143.96,11.637]
[1740819275534,0.03,143.97,143.96,6.08]
[1740819292939,0.03,143.97,143.96,11.637]
[1740819295383,0.03,143.97,143.96,323.637]
[1740819298685,0.03,143.97,143.96,11.637]
[1740819301594,0.03,143.97,143.96,323.637]
[1740819304772,0.03,143.97,143.96,11.637]
[1740819307366,0.03,144.04,143.99,20.0]
[1740819307658,0.03,144.04,143.99,332.0]
[1740819307872,18.67964886,144.04,143.99,332.0]
[1740819308469,24.23374886,144.04,143.97,5.5567]
[1740819308859,18.67964886,144.04,143.97,19.4484]
[1740819311162,18.67964886,144.04,143.97,100.4484]
[1740819311583,18.67964886,144.04,143.98,312.0]
[1740819312678,18.67964886,144.04,143.99,5.5559]
[1740819314558,18.67964886,144.04,143.98,5.5563]
[1740819314758,24.23364886,144.04,143.97,86.5565]
[1740819314958,18.67964886,144.04,143.97,86.5565]
[1740819315680,0.03,144.04,143.97,86.5565]
[1740819315975,0.03,144.04,143.98,312.0]
[1740819316379,0.03,144.04,143.97,100.4482]
[1740819316983,0.03,144.04,143.97,238.4482]
[1740819319181,5.5841,144.04,143.97,224.5565]
[1740819319385,5.5841,144.04,143.98,312.0]
[1740819320489,0.03,144.04,143.98,312.0]
[1740819320789,18.67964886,144.04,143.98,317.5562]
[1740819321566,5.5841,144.04,143.98,317.5562]
[1740819322176,5.5841,144.04,143.99,6.08]
[1740819322373,0.03,144.04,144.02,20.0]
[1740819322569,6.3483,144.11,144.02,20.0]
[1740819322570,6.3483,144.11,144.02,241.0]
[1740819322772,1.6664,144.12,144.03,1.5024]
[1740819323091,1.6664,144.12,144.07,20.0]
[1740819323271,1.6664,144.12,144.07,101.0]
[1740819323885,0.03,144.12,144.08,7.5524]
[1740819324077,0.03,144.12,144.11,20.0]
[1740819324268,0.03,144.12,144.11,239.0]
[1740819325373,0.03,144.12,144.11,551.0]
[1740819326694,0.03,144.12,144.11,531.0]
[1740819326881,0.03,144.12,144.11,6.08]
[1740819333996,0.03,144.12,144.11,87.08]
[1740819334189,0.03,144.12,144.11,225.08]
[1740819334396,0.03,144.12,144.11,230.6313]
[1740819336991,0.03,144.12,144.11,542.6313]
[1740819337997,0.03,144.12,144.11,563.5613]
[1740819338189,0.03,144.12,144.11,565.5613]
[1740819338387,0.03,144.19,144.18,20.0]
[1740819338593,0.898337,144.23,144.18,245.08]
[1740819339183,0.898337,144.23,144.18,266.01]
[1740819340299,0.898337,144.23,144.19,5.5482]
[1740819340978,0.898337,144.23,144.19,29.93399472]
[1740819341186,0.898337,144.23,144.22,40.93]
[1740819341398,0.898337,144.23,144.22,259.93]
[1740819341591,0.898337,144.23,144.22,571.93]
[1740819341785,0.898337,144.23,144.22,579.6422]
[1740819341981,0.898337,144.23,144.22,267.6422]
[1740819342181,65.4189256,144.35,144.27,2.0]
[1740819342381,65.4189256,144.35,144.28,27.01]
[1740819342598,1.6374,144.36,144.28,27.01]
[1740819342793,7.1791,144.36,144.28,6.08]
[1740819342997,18.64964886,144.35,144.28,6.08]
[1740819343892,5.5424,144.34,144.28,6.08]
[1740819345003,5.5424,144.34,144.28,318.08]
[1740819345594,18.64964886,144.35,144.29,6.08]
[1740819345787,24.19164886,144.35,144.29,6.08]
[1740819346197,38.04684886,144.35,144.29,6.08]
[1740819347904,6.6435,144.32,144.29,6.08]
[1740819348082,18.64964886,144.31,144.25,6.08]
[1740819349711,5.544,144.3,144.27,0.063]
[1740819352014,19.404,144.3,144.27,0.063]
[1740819352307,5.544,144.3,144.27,0.063]
[1740819354687,18.64964886,144.29,144.27,0.063]
[1740819356114,5.5447,144.28,144.27,0.063]
[1740819357716,24.19434886,144.28,144.27,0.063]
[1740819359217,18.64964886,144.27,144.19,81.0]
[1740819359516,18.64964886,144.27,144.2,6.06]
[1740819359697,5.5455,144.26,144.2,6.06]
[1740819360718,19.4093,144.26,144.2,6.06]
[1740819362517,5.5437,144.31,144.24,20.0]
[1740819362699,5.5437,144.31,144.25,6.06]
[1740819362895,18.64964886,144.3,144.25,6.06]
[1740819363408,20.64964886,144.3,144.25,6.06]
[1740819363599,98.1027,144.31,144.25,6.06]
[1740819364015,18.64964886,144.3,144.25,6.06]
[1740819366419,5.5443,144.29,144.25,6.06]
[1740819368018,5.5443,144.29,144.25,4.42758156]
[1740819368599,24.19374886,144.3,144.25,321.97338156]
[1740819369224,24.19374886,144.3,144.25,316.42758156]
[1740819369799,24.19374886,144.3,144.25,321.97338156]
[1740819370918,5.5436,144.31,144.25,321.97338156]
[1740819372026,24.19364886,144.3,144.25,4.42758156]
[1740819374527,5.544,144.3,144.25,4.42758156]
[1740819375025,5.544,144.3,144.25,316.42758156]
[1740819375231,18.64964886,144.29,144.25,4.42758156]
[1740819376042,13.8581,144.32,144.25,4.42758156]
[1740819376429,32.50774886,144.32,144.25,85.42758156]
[1740819376933,0.03,144.3,144.25,85.42758156]
[1740819378836,0.03,144.3,144.25,4.42758156]
[1740819379127,0.03,144.3,144.25,81.0]
[1740819380427,5.574,144.3,144.25,81.0]
[1740819381328,5.574,144.3,144.25,81.1]
[1740819382232,18.64964886,144.29,144.25,81.1]
[1740819382740,0.03,144.3,144.25,81.1]
[1740819383738,18.64964886,144.29,144.25,81.1]
[1740819384624,18.64964886,144.29,144.25,0.1]
[1740819385941,5.5447,144.28,144.25,0.1]
[1740819386433,18.64964886,144.27,144.25,0.1]
[1740819387041,0.03,144.3,144.26,6.4539]
[1740819388033,0.03,144.3,144.27,5.5451]
[1740819391317,0.03,144.3,144.27,86.5451]
[1740819392017,0.03,144.3,144.29,20.0]
[1740819392224,0.03,144.3,144.29,108.5932]
[1740819392530,0.03,144.3,144.29,88.5932]
[1740819393948,0.03,144.3,144.29,226.5932]
[1740819394154,0.03,144.3,144.29,232.1375]
[1740819394440,0.03,144.3,144.29,94.1375]
[1740819394834,0.03,144.3,144.29,232.1375]
[1740819397055,0.03,144.3,144.29,544.1375]
[1740819397477,0.03,144.3,144.29,88.5932]
[1740819398169,0.03,144.3,144.29,94.1375]
[1740819401445,0.03,144.3,144.29,232.1375]
[1740819402351,0.03,144.3,144.29,226.5932]
[1740819402537,0.03,144.3,144.29,6.08]
[1740819403167,0.03,144.3,144.25,0.163]
[1740819403361,0.03,144.3,144.26,6.08]
[1740819404554,0.03,144.3,144.25,6.263]
[1740819405468,18.64964886,144.29,144.25,0.163]
[1740819405671,18.64964886,144.27,144.25,0.163]
[1740819407448,24.19394886,144.29,144.25,0.163]
[1740819411073,2.0,144.28,144.25,0.163]
[1740819411249,18.64964886,144.27,144.25,0.163]
[1740819412462,24.19514886,144.26,144.25,0.163]
[1740819413060,26.19514886,144.26,144.25,0.163]
[1740819414052,100.89514886,144.26,144.25,0.163]
[1740819414862,102.89514886,144.26,144.25,0.163]
[1740819415768,100.89514886,144.26,144.25,0.163]
[1740819415973,102.89514886,144.26,144.25,0.163]
[1740819416979,102.89514886,144.26,144.25,0.0001]
[1740819418881,100.89514886,144.26,144.25,0.0001]
[1740819419081,102.89514886,144.26,144.25,0.0001]
[1740819422697,22.0,144.22,144.19,0.063]
[1740819422867,38.64964886,144.2,144.19,0.063]
[1740819424891,119.59094886,144.2,144.19,0.063]
[1740819425098,121.59094886,144.2,144.19,0.063]
[1740819425779,20.0,144.16,144.12,0.063]
[1740819427302,26.2432,144.16,144.12,0.063]
[1740819427474,18.64964886,144.15,144.12,0.063]
[1740819427992,20.0,144.13,144.12,0.063]
[1740819429208,44.89394886,144.13,144.12,0.063]
[1740819429787,46.89394886,144.13,144.12,0.063]
[1740819430178,44.89394886,144.13,144.12,0.063]
[1740819432988,119.59394886,144.13,144.12,0.063]
[1740819433486,113.34964886,144.13,144.12,0.063]
[1740819433866,119.59394886,144.13,144.12,0.063]
[1740819434692,113.34964886,144.13,144.12,0.063]
[1740819435389,119.59394886,144.13,144.12,0.063]
[1740819438883,44.89394886,144.13,144.12,0.063]
[1740819453003,44.89394886,144.13,144.12,0.0001]
[1740819453004,46.89394886,144.13,144.12,0.0001]
[1740819456410,44.89394886,144.13,144.12,0.0001]
[1740819459709,18.64964886,144.13,144.12,0.0001]
[1740819461815,6.2426,144.17,144.12,0.0001]
[1740819462005,80.7,144.18,144.12,0.0001]
[1740819462607,18.64964886,144.17,144.12,0.0001]
[1740819463999,18.67964886,144.19,144.12,0.0001]
[1740819464193,18.64964886,144.17,144.12,0.0001]
[1740819467815,6.2421,144.18,144.12,0.0001]
[1740819468618,86.9421,144.18,144.12,0.0001]
[1740819470426,24.89244886,144.17,144.12,0.0001]
[1740819473429,6.2423,144.18,144.12,81.0001]
[1740819475115,0.03,144.19,144.12,81.0001]
[1740819475430,18.64964886,144.17,144.12,87.2446]
[1740819475631,18.67964886,144.19,144.12,87.2446]
[1740819476435,18.64964886,144.17,144.12,87.2446]
[1740819479213,6.2719,144.19,144.12,87.2446]
[1740819479840,0.03,144.19,144.12,87.2446]
[1740819481037,0.03,144.19,144.12,399.2446]
[1740819483739,0.03,144.19,144.12,87.2446]
[1740819484635,0.03,144.19,144.12,81.0001]
[1740819484938,0.03,144.19,144.12,87.2448]
[1740819485719,0.03,144.19,144.12,81.0001]
[1740819488126,18.64964886,144.16,144.12,81.0001]
[1740819488326,6.243,144.16,144.12,81.0001]
[1740819489449,6.243,144.16,144.12,0.0001]
[1740819489754,0.03,144.19,144.12,87.2446]
[1740819490640,6.2719,144.19,144.12,87.2446]
[1740819501869,0.03,144.19,144.12,87.2446]
[1740819502542,18.67964886,144.19,144.12,87.2446]
[1740819503180,24.92164886,144.19,144.12,399.2446]
[1740819503769,24.92164886,144.19,144.12,87.2446]
[1740819506452,24.92164886,144.19,144.14,6.2439]
[1740819506669,24.92164886,144.19,144.15,6.08]
[1740819516080,0.03,144.19,144.15,87.08]
[1740819516260,0.03,144.19,144.15,93.3234]
[1740819522484,0.03,144.19,144.15,246.9321]
[1740819522683,0.03,144.19,144.17,6.524]
[1740819523690,0.03,144.19,144.18,1.5849]
[1740819523870,0.03,144.19,144.18,82.5849]
[1740819524689,0.03,144.19,144.18,88.827]
[1740819526989,0.03,144.26,144.18,88.827]
[1740819527182,0.03,144.26,144.18,242.4324]
[1740819529184,0.03,144.26,144.19,312.0]
[1740819529375,0.03,144.26,144.2,6.08]
[1740819530799,0.03,144.26,144.2,12.3213]
[1740819530972,0.03,144.26,144.2,93.3213]
[1740819531293,20.0,144.24,144.18,88.8267]
[1740819531509,18.64964886,144.24,144.18,1.5849]
[1740819531890,18.64964886,144.24,144.18,7.8269]
[1740819532481,18.64964886,144.24,144.18,1.5849]
[1740819532901,6.24,144.23,144.18,82.5849]
[1740819534985,6.2396,144.24,144.18,82.5849]
[1740819535496,44.88924886,144.24,144.18,82.5849]
[1740819536480,44.88924886,144.24,144.18,88.827]
[1740819537210,38.64964886,144.24,144.18,88.827]
[1740819538007,44.88924886,144.24,144.18,88.827]
[1740819538304,6.2396,144.24,144.18,88.827]
[1740819539309,20.0,144.25,144.18,88.827]
[1740819539491,6.2687,144.26,144.18,88.827]
[1740819540309,24.91834886,144.26,144.18,400.827]
[1740819542305,0.03,144.26,144.18,473.4324]
[1740819542489,0.03,144.26,144.18,161.4324]
[1740819542905,0.03,144.26,144.21,20.0]
[1740819543086,0.03,144.26,144.22,6.06]
[1740819544604,0.03,144.26,144.23,6.24]
[1740819546386,0.03,144.26,144.22,6.06]
[1740819548007,0.03,144.26,144.22,12.3004]
[1740819550190,0.03,144.26,144.22,27.9015]
[1740819550390,0.03,144.26,144.23,1.5855]
[1740819551010,0.03,144.26,144.23,82.5855]
[1740819553014,0.03,144.26,144.24,6.2396]
[1740819553215,0.03,144.26,144.24,225.2396]
[1740819554617,0.03,144.26,144.24,537.2396]
[1740819556305,0.03,144.26,144.24,225.2396]
[1740819558023,0.03,144.26,144.24,87.2396]
[1740819559420,0.03,144.26,144.25,312.0]
[1740819561623,0.03,144.26,144.25,318.2391]
[1740819562322,0.03,144.26,144.25,537.2391]
[1740819563826,0.03,144.26,144.25,87.2391]
[1740819564697,0.03,144.26,144.25,81.0]
[1740819567407,0.03,144.26,144.21,6.06]
[1740819567608,18.67964886,144.26,144.21,87.06]
[1740819568714,18.67964886,144.26,144.21,93.3008]
[1740819570413,6.2687,144.26,144.21,87.06]
[1740819572532,18.67964886,144.26,144.21,87.06]
[1740819572734,18.67964886,144.26,144.21,81.0]
[1740819574628,0.03,144.26,144.21,81.0]
[1740819574812,6.2688,144.26,144.21,81.0]
[1740819577636,0.03,144.26,144.21,81.0]
[1740819578036,0.03,144.26,144.21,87.2408]
[1740819579136,0.03,144.26,144.21,81.0]
[1740819581031,1.6909,144.26,144.21,81.0]
[1740819581425,1.6909,144.26,144.21,87.2408]
[1740819582440,20.34054886,144.26,144.21,87.2408]
[1740819582640,20.34054886,144.26,144.22,6.06]
[1740819583024,26.57934886,144.26,144.22,6.06]
[1740819583741,20.34054886,144.26,144.22,6.06]
[1740819586024,20.34054886,144.26,144.22,12.3003]
[1740819588843,0.03,144.26,144.22,231.3003]
[1740819589352,0.03,144.26,144.22,246.9014]
[1740819590547,0.03,144.26,144.23,6.06]
[1740819591752,0.03,144.26,144.23,318.06]
[1740819591926,0.03,144.26,144.24,6.2396]
[1740819594838,0.03,144.26,144.23,87.06]
[1740819595033,0.03,144.26,144.23,93.2999]
[1740819597159,0.03,144.26,144.23,87.06]
[1740819597533,0.03,144.26,144.24,6.06]
[1740819603153,18.64964886,144.25,144.21,6.06]
[1740819603353,18.64964886,144.25,144.19,87.3046]
[1740819603568,18.64964886,144.25,144.2,6.06]
[1740819604666,18.64964886,144.23,144.2,6.06]
[1740819606860,24.88894886,144.25,144.2,6.06]
[1740819607375,18.64964886,144.25,144.2,6.06]
[1740819607875,18.64964886,144.25,144.2,12.3012]
[1740819608164,24.88884886,144.25,144.2,6.06]
[1740819611347,24.88884886,144.25,144.2,12.3012]
[1740819611771,18.64964886,144.25,144.2,12.3012]
[1740819614382,18.64964886,144.25,144.21,6.06]
[1740819615868,24.88884886,144.25,144.21,6.06]
[1740819620671,105.58884886,144.25,144.19,6.123]
[1740819624776,107.58884886,144.25,144.19,6.123]
[1740819627757,123.18674886,144.25,144.19,6.123]
[1740819628575,18.64964886,144.23,144.19,6.123]
[1740819628780,20.23234886,144.23,144.19,6.123]
[1740819630080,18.64964886,144.21,144.19,0.063]
[1740819631960,6.2413,144.2,144.19,0.063]
[1740819634080,24.89094886,144.2,144.19,0.063]
[1740819637582,26.89094886,144.2,144.19,0.063]
[1740819638476,28.89094886,144.2,144.19,0.0001]
[1740819639069,30.42094886,144.2,144.19,0.0001]
[1740819641683,18.64964886,144.15,144.12,0.0001]
[1740819642778,24.89334886,144.15,144.12,0.0001]
[1740819652586,0.2244306,144.18,144.12,81.0001]
[1740819653186,0.03,144.2,144.16,48.7596]
[1740819653403,0.03,144.25,144.17,7.53581959]
[1740819653571,0.03,144.25,144.17,231.57341198]
[1740819654087,0.03,144.25,144.2,20.0]
[1740819654590,0.03,144.25,144.18,6.2421]
[1740819655483,0.03,144.25,144.18,318.2421]
[1740819656788,0.03,144.25,144.19,6.08]
[1740819660502,80.73,144.25,144.19,6.08]
[1740819660682,18.64964886,144.24,144.19,6.08]
[1740819662779,80.73,144.25,144.19,12.3217]
[1740819663491,80.73,144.25,144.19,6.08]
[1740819663683,18.64964886,144.24,144.19,6.08]
[1740819664696,18.64964886,144.24,144.19,12.3215]
[1740819668501,24.88924886,144.24,144.19,6.08]
[1740819670698,26.88924886,144.24,144.19,6.08]
[1740819671104,2.0,144.23,144.19,6.08]
[1740819672003,8.24,144.23,144.19,6.08]
[1740819672587,8.24,144.23,144.16,14.1025]
[1740819672795,8.24,144.23,144.17,6.06]
[1740819673096,8.24,144.23,144.19,0.063]
[1740819676921,2.0,144.23,144.19,0.063]
[1740819678617,80.73,144.24,144.19,0.063]
[1740819679806,18.64964886,144.23,144.19,0.063]
[1740819681488,0.03,144.24,144.19,0.063]
[1740819685503,18.64964886,144.23,144.19,0.063]
[1740819689403,24.88964886,144.23,144.19,0.063]
[1740819693536,18.64964886,144.23,144.19,0.063]
[1740819695414,0.03,144.24,144.19,0.063]
[1740819695724,0.03,144.24,144.2,1.5993]
[1740819696606,0.03,144.24,144.23,20.0]
[1740819696822,0.03,144.24,144.23,26.06]
[1740819697422,0.03,144.24,144.23,32.3]
[1740819699019,0.03,144.24,144.23,114.8993]
[1740819699613,0.03,144.24,144.23,426.8993]
[1740819700111,0.03,144.25,144.24,6.5017]
[1740819701637,0.03,144.25,144.24,12.7413]
[1740819702532,0.03,144.25,144.24,6.5017]
[1740819704233,0.03,144.25,144.23,88.6593]
[1740819704538,0.03,144.25,144.23,1.5993]
[1740819704716,0.03,144.25,144.24,6.06]
[1740819722432,0.03,144.25,144.24,6.123]
[1740819731544,0.03,144.25,144.24,0.063]
[1740819745865,24.91874886,144.25,144.24,0.063]
[1740819748366,105.61874886,144.25,144.24,0.063]
[1740819748538,105.61874886,144.25,144.19,1.5729]
[1740819748539,22.0,144.22,144.19,0.063]
[1740819748858,18.64964886,144.2,144.19,0.063]
[1740819749559,24.89094886,144.2,144.19,0.063]
[1740819751466,18.64964886,144.2,144.19,0.063]
[1740819752569,24.89094886,144.2,144.19,0.063]